[Event "*** Titled Tuesday Blitz"]
[Site "Chess.com"]
[Date "2020.05.26"]
[Round "1"]
[White "CrazyMartian"]
[Black "Olkaa"]
[Result "1/2-1/2"]
[WhiteElo "2299"]
[BlackElo "2618"]
[TimeControl "180+1"]
[EndTime "10:09:34 PDT"]
[Termination "Game drawn by stalemate"]

1. d4 {[%clk 0:02:47.5]} 1... Nf6 {[%clk 0:02:59.6]} 2. c4 {[%clk 0:02:46.3]}
2... c5 {[%clk 0:02:59]} 3. d5 {[%clk 0:02:44.5]} 3... b5 {[%clk 0:02:58.7]} 4.
cxb5 {[%clk 0:02:43.7]} 4... a6 {[%clk 0:02:58.6]} 5. bxa6 {[%clk 0:02:42.7]}
5... g6 {[%clk 0:02:58.5]} 6. Nc3 {[%clk 0:02:41.7]} 6... Bg7 {[%clk 0:02:57.6]}
7. e4 {[%clk 0:02:37.6]} 7... O-O {[%clk 0:02:55.4]} 8. Nf3 {[%clk 0:02:27.7]}
8... Qa5 {[%clk 0:02:54.2]} 9. Bd2 {[%clk 0:02:25]} 9... Bxa6 {[%clk 0:02:49.5]}
10. Be2 {[%clk 0:02:23.6]} 10... d6 {[%clk 0:02:47.1]} 11. O-O {[%clk
0:02:21.8]} 11... Bxe2 {[%clk 0:02:46.6]} 12. Qxe2 {[%clk 0:02:21]} 12... Qa6
{[%clk 0:02:46.7]} 13. Rfe1 {[%clk 0:02:11.5]} 13... Qxe2 {[%clk 0:02:41.4]} 14.
Rxe2 {[%clk 0:02:11]} 14... Nbd7 {[%clk 0:02:41.1]} 15. Rd1 {[%clk 0:01:52.6]}
15... Ng4 {[%clk 0:02:24]} 16. h3 {[%clk 0:01:47.1]} 16... Nge5 {[%clk
0:02:23.7]} 17. Nxe5 {[%clk 0:01:46.1]} 17... Nxe5 {[%clk 0:02:24.6]} 18. Be1
{[%clk 0:01:32.8]} 18... Rfb8 {[%clk 0:02:13.3]} 19. b3 {[%clk 0:01:30.6]} 19...
c4 {[%clk 0:01:55.5]} 20. bxc4 {[%clk 0:01:17.2]} 20... Nxc4 {[%clk 0:01:54.1]}
21. Rb1 {[%clk 0:01:00.1]} 21... Rxb1 {[%clk 0:01:32.3]} 22. Nxb1 {[%clk
0:00:58.8]} 22... Rb8 {[%clk 0:01:32.6]} 23. Nd2 {[%clk 0:00:50.4]} 23... Rb2
{[%clk 0:01:20.5]} 24. Kf1 {[%clk 0:00:43.9]} 24... Na3 {[%clk 0:01:11.8]} 25.
Nb3 {[%clk 0:00:34.9]} 25... Rb1 {[%clk 0:01:11.7]} 26. f3 {[%clk 0:00:28]}
26... h5 {[%clk 0:01:00.4]} 27. h4 {[%clk 0:00:24.6]} 27... Nb5 {[%clk
0:00:53.6]} 28. Kf2 {[%clk 0:00:22.7]} 28... Bf6 {[%clk 0:00:46.5]} 29. g3
{[%clk 0:00:22.6]} 29... Kg7 {[%clk 0:00:32]} 30. Kg2 {[%clk 0:00:21.7]} 30...
Na3 {[%clk 0:00:25]} 31. Bf2 {[%clk 0:00:19]} 31... Nb5 {[%clk 0:00:21.3]} 32.
Rc2 {[%clk 0:00:18.1]} 32... Nc3 {[%clk 0:00:18.4]} 33. Bd4 {[%clk 0:00:16.1]}
33... Bxd4 {[%clk 0:00:11.1]} 34. Nxd4 {[%clk 0:00:17]} 34... Na4 {[%clk
0:00:08.6]} 35. Ne2 {[%clk 0:00:16.3]} 35... Nb6 {[%clk 0:00:07.8]} 36. Nf4
{[%clk 0:00:15.4]} 36... Ra1 {[%clk 0:00:07.2]} 37. Rf2 {[%clk 0:00:14.9]} 37...
Nc4 {[%clk 0:00:06.6]} 38. Re2 {[%clk 0:00:15.1]} 38... Ne5 {[%clk 0:00:05.4]}
39. Kf2 {[%clk 0:00:14.2]} 39... Nc4 {[%clk 0:00:05.5]} 40. Kg2 {[%clk
0:00:13.8]} 40... Na3 {[%clk 0:00:04.8]} 41. Nd3 {[%clk 0:00:13.8]} 41... Nb5
{[%clk 0:00:04.9]} 42. Nf2 {[%clk 0:00:13.9]} 42... Nc3 {[%clk 0:00:04.9]} 43.
Rc2 {[%clk 0:00:13.4]} 43... Nxa2 {[%clk 0:00:05.1]} 44. g4 {[%clk 0:00:13.2]}
44... hxg4 {[%clk 0:00:04.4]} 45. Nxg4 {[%clk 0:00:12.6]} 45... Nb4 {[%clk
0:00:04.5]} 46. Rd2 {[%clk 0:00:12.9]} 46... Ra2 {[%clk 0:00:03.5]} 47. Rxa2
{[%clk 0:00:11.9]} 47... Nxa2 {[%clk 0:00:04.4]} 48. Kg3 {[%clk 0:00:12.1]}
48... Nc3 {[%clk 0:00:04.4]} 49. Ne3 {[%clk 0:00:12.2]} 49... Ne2+ {[%clk
0:00:04.4]} 50. Kf2 {[%clk 0:00:12.5]} 50... Nf4 {[%clk 0:00:04.5]} 51. Ng4
{[%clk 0:00:12.7]} 51... Nh5 {[%clk 0:00:02.6]} 52. Nh2 {[%clk 0:00:11.9]} 52...
Nf6 {[%clk 0:00:02.3]} 53. Nf1 {[%clk 0:00:11.6]} 53... Nd7 {[%clk 0:00:03.2]}
54. Ne3 {[%clk 0:00:11.7]} 54... Nc5 {[%clk 0:00:04.1]} 55. h5 {[%clk
0:00:11.7]} 55... gxh5 {[%clk 0:00:03.1]} 56. Kg2 {[%clk 0:00:11.8]} 56... Kf6
{[%clk 0:00:03.5]} 57. Nf5 {[%clk 0:00:11.5]} 57... Nd3 {[%clk 0:00:02.9]} 58.
Kg3 {[%clk 0:00:11.3]} 58... e6 {[%clk 0:00:02.9]} 59. Nxd6 {[%clk 0:00:09.2]}
59... exd5 {[%clk 0:00:03.2]} 60. exd5 {[%clk 0:00:10.1]} 60... Ne5 {[%clk
0:00:03.3]} 61. Ne4+ {[%clk 0:00:09.4]} 61... Kf5 {[%clk 0:00:03.4]} 62. Nd6+
{[%clk 0:00:08.8]} 62... Kf6 {[%clk 0:00:03.4]} 63. Kf4 {[%clk 0:00:07.7]} 63...
Ng6+ {[%clk 0:00:03.1]} 64. Kg3 {[%clk 0:00:07.9]} 64... h4+ {[%clk 0:00:04]}
65. Kh3 {[%clk 0:00:06.5]} 65... Ke7 {[%clk 0:00:04.3]} 66. Nf5+ {[%clk
0:00:06]} 66... Kf6 {[%clk 0:00:04.6]} 67. Nxh4 {[%clk 0:00:06.2]} 67... Nf4+
{[%clk 0:00:05]} 68. Kg4 {[%clk 0:00:05.7]} 68... Nxd5 {[%clk 0:00:05.9]} 69. f4
{[%clk 0:00:05.2]} 69... Ne7 {[%clk 0:00:06]} 70. Kf3 {[%clk 0:00:05.2]} 70...
Nd5 {[%clk 0:00:05.9]} 71. Ng2 {[%clk 0:00:04.9]} 71... Ne7 {[%clk 0:00:06.8]}
72. Ne3 {[%clk 0:00:05.6]} 72... Ng6 {[%clk 0:00:07.2]} 73. Ng4+ {[%clk
0:00:06.5]} 73... Kg7 {[%clk 0:00:07.4]} 74. Ne3 {[%clk 0:00:07.4]} 74... f6
{[%clk 0:00:07.6]} 75. Ng2 {[%clk 0:00:07.7]} 75... Kf7 {[%clk 0:00:07.9]} 76.
Ne3 {[%clk 0:00:08.6]} 76... Ke6 {[%clk 0:00:07.9]} 77. Ng4 {[%clk 0:00:09]}
77... Ne7 {[%clk 0:00:07.6]} 78. Ne3 {[%clk 0:00:09.9]} 78... Nd5 {[%clk
0:00:07]} 79. Nxd5 {[%clk 0:00:09.6]} 79... Kxd5 {[%clk 0:00:07.9]} 80. Kg4
{[%clk 0:00:10]} 80... Ke4 {[%clk 0:00:07.7]} 81. f5 {[%clk 0:00:10.4]} 81...
Ke5 {[%clk 0:00:07.1]} 82. Kg3 {[%clk 0:00:11.3]} 82... Kxf5 {[%clk 0:00:07.4]}
83. Kf3 {[%clk 0:00:12.2]} 83... Kg5 {[%clk 0:00:08.2]} 84. Kg3 {[%clk
0:00:12.1]} 84... f5 {[%clk 0:00:09.1]} 85. Kf3 {[%clk 0:00:12.2]} 85... f4
{[%clk 0:00:10]} 86. Kf2 {[%clk 0:00:12.5]} 86... Kf5 {[%clk 0:00:10.9]} 87. Kf3
{[%clk 0:00:12.4]} 87... Ke5 {[%clk 0:00:10.9]} 88. Kf2 {[%clk 0:00:12.5]} 88...
Ke4 {[%clk 0:00:11.8]} 89. Ke2 {[%clk 0:00:12.6]} 89... f3+ {[%clk 0:00:12.7]}
90. Kf2 {[%clk 0:00:12.6]} 90... Kf4 {[%clk 0:00:13.6]} 91. Kf1 {[%clk
0:00:12.7]} 91... Kg3 {[%clk 0:00:14.5]} 92. Kg1 {[%clk 0:00:12.7]} 92... f2+
{[%clk 0:00:14.6]} 93. Kf1 {[%clk 0:00:12.8]} 93... Kf3 {[%clk 0:00:15.5]}
1/2-1/2

[Event "*** Titled Tuesday Blitz"]
[Site "Chess.com"]
[Date "2020.05.26"]
[Round "1"]
[White "kagg1125"]
[Black "malakismayil"]
[Result "1/2-1/2"]
[WhiteElo "2605"]
[BlackElo "2287"]
[TimeControl "180+1"]
[EndTime "10:09:42 PDT"]
[Termination "Game drawn by stalemate"]

1. c4 {[%clk 0:02:54.5]} 1... e5 {[%clk 0:02:58.5]} 2. Nc3 {[%clk 0:02:53]} 2...
Nf6 {[%clk 0:02:58.7]} 3. Nf3 {[%clk 0:02:53.3]} 3... Nc6 {[%clk 0:02:58.3]} 4.
e3 {[%clk 0:02:53.1]} 4... Bb4 {[%clk 0:02:57.6]} 5. Qc2 {[%clk 0:02:52.9]} 5...
O-O {[%clk 0:02:57.3]} 6. Nd5 {[%clk 0:02:52.8]} 6... Be7 {[%clk 0:02:52]} 7. a3
{[%clk 0:02:34.4]} 7... a5 {[%clk 0:02:48.5]} 8. b3 {[%clk 0:02:33.1]} 8... d6
{[%clk 0:02:46.4]} 9. Ng5 {[%clk 0:02:25.1]} 9... g6 {[%clk 0:02:40.1]} 10. h4
{[%clk 0:02:25]} 10... h5 {[%clk 0:02:28.4]} 11. Bd3 {[%clk 0:02:20.9]} 11...
Kg7 {[%clk 0:02:24.2]} 12. Bb2 {[%clk 0:02:20.1]} 12... Be6 {[%clk 0:02:12.9]}
13. Bxg6 {[%clk 0:02:06.4]} 13... Bxd5 {[%clk 0:02:01.1]} 14. cxd5 {[%clk
0:02:03.3]} 14... Nxd5 {[%clk 0:02:00.2]} 15. Bxh5 {[%clk 0:01:53.4]} 15... Bxg5
{[%clk 0:01:40.4]} 16. hxg5 {[%clk 0:01:53.7]} 16... Qxg5 {[%clk 0:01:41.2]} 17.
Bf3 {[%clk 0:01:54.1]} 17... Nf6 {[%clk 0:01:38.9]} 18. O-O-O {[%clk 0:01:52.4]}
18... Rh8 {[%clk 0:01:34.2]} 19. Kb1 {[%clk 0:01:47.1]} 19... Qg6 {[%clk
0:01:19.6]} 20. Qxg6+ {[%clk 0:01:30.1]} 20... Kxg6 {[%clk 0:01:06.5]} 21. d3
{[%clk 0:01:30.3]} 21... d5 {[%clk 0:00:57.7]} 22. Kc2 {[%clk 0:01:28.1]} 22...
Kg7 {[%clk 0:00:54.8]} 23. Kd2 {[%clk 0:01:19]} 23... Rad8 {[%clk 0:00:47.2]}
24. Ke2 {[%clk 0:01:14.4]} 24... Rde8 {[%clk 0:00:46.9]} 25. g3 {[%clk
0:01:13.6]} 25... Rd8 {[%clk 0:00:37.7]} 26. Bg2 {[%clk 0:01:10.4]} 26... Rde8
{[%clk 0:00:37.4]} 27. Rc1 {[%clk 0:01:10.5]} 27... Rd8 {[%clk 0:00:37.2]} 28.
Ba1 {[%clk 0:01:06.4]} 28... Rxh1 {[%clk 0:00:36.1]} 29. Bxh1 {[%clk 0:01:04.6]}
29... Rd7 {[%clk 0:00:35]} 30. Bg2 {[%clk 0:01:00.7]} 30... Kf8 {[%clk
0:00:34.2]} 31. f4 {[%clk 0:00:58.9]} 31... Re7 {[%clk 0:00:26.1]} 32. fxe5
{[%clk 0:00:47.3]} 32... Nxe5 {[%clk 0:00:27]} 33. Bxe5 {[%clk 0:00:48.2]} 33...
Rxe5 {[%clk 0:00:27.9]} 34. Rxc7 {[%clk 0:00:48.3]} 34... d4 {[%clk 0:00:28.2]}
35. e4 {[%clk 0:00:47.4]} 35... Rb5 {[%clk 0:00:27.3]} 36. e5 {[%clk 0:00:33.3]}
36... Rxe5+ {[%clk 0:00:26.1]} 37. Kf2 {[%clk 0:00:33.4]} 37... Rf5+ {[%clk
0:00:25.2]} 38. Kg1 {[%clk 0:00:33.7]} 38... b5 {[%clk 0:00:20.7]} 39. Ra7
{[%clk 0:00:31.4]} 39... b4 {[%clk 0:00:19.8]} 40. axb4 {[%clk 0:00:32.3]} 40...
axb4 {[%clk 0:00:20.7]} 41. Rb7 {[%clk 0:00:32.3]} 41... Nd5 {[%clk 0:00:20.8]}
42. Bxd5 {[%clk 0:00:30.9]} 42... Rxd5 {[%clk 0:00:21.7]} 43. Rxb4 {[%clk
0:00:31.4]} 43... Kg7 {[%clk 0:00:22.4]} 44. Kg2 {[%clk 0:00:31.6]} 44... Kf6
{[%clk 0:00:22.2]} 45. Kf3 {[%clk 0:00:32.1]} 45... Ke5 {[%clk 0:00:22.5]} 46.
Rc4 {[%clk 0:00:31.6]} 46... f5 {[%clk 0:00:22.6]} 47. Rb4 {[%clk 0:00:27.2]}
47... Rc5 {[%clk 0:00:22.1]} 48. Rb8 {[%clk 0:00:24]} 48... Rc3 {[%clk
0:00:21.7]} 49. Ke2 {[%clk 0:00:23.4]} 49... Rc2+ {[%clk 0:00:21.6]} 50. Kf3
{[%clk 0:00:23.5]} 50... Rd2 {[%clk 0:00:21.8]} 51. Rb5+ {[%clk 0:00:22.3]}
51... Kf6 {[%clk 0:00:21.5]} 52. b4 {[%clk 0:00:19.6]} 52... Rxd3+ {[%clk
0:00:21.5]} 53. Kf4 {[%clk 0:00:20.1]} 53... Ke6 {[%clk 0:00:21.2]} 54. Re5+
{[%clk 0:00:19.6]} 54... Kd6 {[%clk 0:00:20.8]} 55. Rxf5 {[%clk 0:00:20]} 55...
Rb3 {[%clk 0:00:21.2]} 56. b5 {[%clk 0:00:19.3]} 56... d3 {[%clk 0:00:21]} 57.
Ke4 {[%clk 0:00:18.8]} 57... d2 {[%clk 0:00:19.9]} 58. Rd5+ {[%clk 0:00:18.4]}
58... Ke6 {[%clk 0:00:19.5]} 59. Rxd2 {[%clk 0:00:18.6]} 59... Rxg3 {[%clk
0:00:18.6]} 60. Rd8 {[%clk 0:00:13.7]} 60... Rb3 {[%clk 0:00:17.9]} 61. Rb8
{[%clk 0:00:13.6]} 61... Kd6 {[%clk 0:00:17.7]} 62. Kd4 {[%clk 0:00:13.7]} 62...
Rb1 {[%clk 0:00:18]} 63. Rd8+ {[%clk 0:00:13]} 63... Kc7 {[%clk 0:00:18]} 64.
Rd5 {[%clk 0:00:11.6]} 64... Kb6 {[%clk 0:00:17.4]} 65. Kc4 {[%clk 0:00:11.6]}
65... Rc1+ {[%clk 0:00:17.7]} 66. Kb4 {[%clk 0:00:11.9]} 66... Rb1+ {[%clk
0:00:18]} 67. Ka4 {[%clk 0:00:12.2]} 67... Ra1+ {[%clk 0:00:18.2]} 68. Kb4
{[%clk 0:00:11.5]} 68... Rb1+ {[%clk 0:00:19.1]} 69. Kc3 {[%clk 0:00:11.9]}
69... Rc1+ {[%clk 0:00:19.3]} 70. Kb3 {[%clk 0:00:10.5]} 70... Rc5 {[%clk
0:00:19.7]} 71. Rxc5 {[%clk 0:00:08.9]} 71... Kxc5 {[%clk 0:00:19.8]} 72. Ka4
{[%clk 0:00:09.8]} 72... Kb6 {[%clk 0:00:20.1]} 73. Kb4 {[%clk 0:00:10.7]} 73...
Kb7 {[%clk 0:00:20.3]} 74. Kc4 {[%clk 0:00:10.5]} 74... Kb6 {[%clk 0:00:20.2]}
75. Kb4 {[%clk 0:00:10.9]} 75... Kb7 {[%clk 0:00:20.4]} 76. Kc5 {[%clk
0:00:11.8]} 76... Kc7 {[%clk 0:00:20.5]} 77. b6+ {[%clk 0:00:12.1]} 77... Kb7
{[%clk 0:00:20.8]} 78. Kb5 {[%clk 0:00:10.4]} 78... Kb8 {[%clk 0:00:21]} 79. Kc4
{[%clk 0:00:10.7]} 79... Kb7 {[%clk 0:00:20.8]} 80. Kc5 {[%clk 0:00:11.2]} 80...
Kb8 {[%clk 0:00:20.2]} 81. Kb5 {[%clk 0:00:09.4]} 81... Kb7 {[%clk 0:00:20.2]}
82. Ka5 {[%clk 0:00:09.9]} 82... Kb8 {[%clk 0:00:19.9]} 83. Ka6 {[%clk 0:00:10]}
83... Ka8 {[%clk 0:00:19.8]} 84. Kb5 {[%clk 0:00:09.9]} 84... Kb7 {[%clk
0:00:19.8]} 85. Kc5 {[%clk 0:00:10.1]} 85... Kb8 {[%clk 0:00:19.6]} 86. Kc6
{[%clk 0:00:10.3]} 86... Kc8 {[%clk 0:00:19.6]} 87. b7+ {[%clk 0:00:10.9]} 87...
Kb8 {[%clk 0:00:19.7]} 88. Kb6 {[%clk 0:00:10.7]} 1/2-1/2

[Event "*** Titled Tuesday Blitz"]
[Site "Chess.com"]
[Date "2020.05.26"]
[Round "1"]
[White "SlavenPastar"]
[Black "Bulldog167"]
[Result "0-1"]
[WhiteElo "2398"]
[BlackElo "2781"]
[TimeControl "180+1"]
[EndTime "10:09:48 PDT"]
[Termination "Bulldog167 won on time"]

1. d4 {[%clk 0:02:57.7]} 1... Nf6 {[%clk 0:02:55.3]} 2. c4 {[%clk 0:02:58.1]}
2... e6 {[%clk 0:02:54.8]} 3. Nc3 {[%clk 0:02:58.2]} 3... Bb4 {[%clk 0:02:54.2]}
4. e3 {[%clk 0:02:58.8]} 4... O-O {[%clk 0:02:53.7]} 5. Bd3 {[%clk 0:02:59.4]}
5... c5 {[%clk 0:02:53.7]} 6. Bd2 {[%clk 0:02:55]} 6... b6 {[%clk 0:02:52.1]} 7.
Rc1 {[%clk 0:02:50.7]} 7... Bb7 {[%clk 0:02:51]} 8. Nf3 {[%clk 0:02:50.2]} 8...
cxd4 {[%clk 0:02:50]} 9. exd4 {[%clk 0:02:50]} 9... d5 {[%clk 0:02:50.6]} 10.
cxd5 {[%clk 0:02:43.7]} 10... Nxd5 {[%clk 0:02:49.4]} 11. O-O {[%clk 0:02:43]}
11... Be7 {[%clk 0:02:32.1]} 12. Qe2 {[%clk 0:02:27.5]} 12... Nd7 {[%clk
0:02:21.1]} 13. Ne5 {[%clk 0:02:14.9]} 13... Nxe5 {[%clk 0:02:07.3]} 14. dxe5
{[%clk 0:02:15.8]} 14... Nxc3 {[%clk 0:02:00.7]} 15. Bxc3 {[%clk 0:02:06.6]}
15... Qd5 {[%clk 0:02:00.5]} 16. f3 {[%clk 0:02:04.6]} 16... Rfd8 {[%clk
0:01:53]} 17. Be4 {[%clk 0:01:54.3]} 17... Qc5+ {[%clk 0:01:46.9]} 18. Kh1
{[%clk 0:01:53.6]} 18... Bxe4 {[%clk 0:01:46.8]} 19. Qxe4 {[%clk 0:01:54.5]}
19... Qd5 {[%clk 0:01:41.4]} 20. Qxd5 {[%clk 0:01:26.6]} 20... Rxd5 {[%clk
0:01:42.3]} 21. Rfd1 {[%clk 0:01:25.1]} 21... Rad8 {[%clk 0:01:37.6]} 22. Rxd5
{[%clk 0:01:20.8]} 22... Rxd5 {[%clk 0:01:38.5]} 23. Kg1 {[%clk 0:01:18]} 23...
g5 {[%clk 0:01:35.9]} 24. Kf2 {[%clk 0:01:10.4]} 24... Kg7 {[%clk 0:01:34.5]}
25. Ke3 {[%clk 0:01:07.9]} 25... Kg6 {[%clk 0:01:31.5]} 26. Ke4 {[%clk
0:01:06.8]} 26... h5 {[%clk 0:01:20.9]} 27. h3 {[%clk 0:01:01.1]} 27... Bc5
{[%clk 0:01:16.3]} 28. Rc2 {[%clk 0:00:57.7]} 28... Rd1 {[%clk 0:01:12.2]} 29.
Re2 {[%clk 0:00:41]} 29... b5 {[%clk 0:01:03.2]} 30. a3 {[%clk 0:00:36.3]} 30...
Rc1 {[%clk 0:00:52.7]} 31. Kd3 {[%clk 0:00:20.5]} 31... Kf5 {[%clk 0:00:48.7]}
32. g4+ {[%clk 0:00:14.3]} 32... Kg6 {[%clk 0:00:48.9]} 33. Re1 {[%clk
0:00:10.8]} 33... Rxe1 {[%clk 0:00:43.1]} 34. Bxe1 {[%clk 0:00:11.7]} 34... hxg4
{[%clk 0:00:41]} 35. hxg4 {[%clk 0:00:11]} 35... a6 {[%clk 0:00:34.6]} 36. Ke4
{[%clk 0:00:11]} 36... Bf8 {[%clk 0:00:30.9]} 37. Bc3 {[%clk 0:00:10.1]} 37...
Be7 {[%clk 0:00:31]} 38. Bd2 {[%clk 0:00:09.2]} 38... Kg7 {[%clk 0:00:30]} 39.
Bc3 {[%clk 0:00:09.3]} 39... Kf8 {[%clk 0:00:30.3]} 40. Bd2 {[%clk 0:00:06.8]}
40... Ke8 {[%clk 0:00:30.4]} 41. b3 {[%clk 0:00:06.2]} 41... Bxa3 {[%clk
0:00:24.1]} 42. Bxg5 {[%clk 0:00:06.6]} 42... a5 {[%clk 0:00:22.8]} 43. Bd2
{[%clk 0:00:07.1]} 43... a4 {[%clk 0:00:23.2]} 44. bxa4 {[%clk 0:00:07]} 44...
bxa4 {[%clk 0:00:24.1]} 45. Bc3 {[%clk 0:00:07.5]} 45... Bc1 {[%clk 0:00:19.5]}
46. Kd3 {[%clk 0:00:07]} 46... Kd7 {[%clk 0:00:18.1]} 47. Kc2 {[%clk 0:00:07.2]}
47... Be3 {[%clk 0:00:16.2]} 48. Kd3 {[%clk 0:00:07.2]} 48... Bf4 {[%clk
0:00:14.4]} 49. Kc4 {[%clk 0:00:07.1]} 49... Kc6 {[%clk 0:00:13.5]} 50. Kb4
{[%clk 0:00:07.4]} 50... Kd5 {[%clk 0:00:13.7]} 51. Kxa4 {[%clk 0:00:07.2]}
51... Bxe5 {[%clk 0:00:13.5]} 52. Bd2 {[%clk 0:00:07.5]} 52... Kc4 {[%clk
0:00:13.5]} 53. Ka3 {[%clk 0:00:06]} 53... Kd3 {[%clk 0:00:12.4]} 54. Bh6 {[%clk
0:00:06.2]} 54... Ke2 {[%clk 0:00:12]} 55. f4 {[%clk 0:00:06.6]} 55... Bd6+
{[%clk 0:00:12.7]} 56. Kb3 {[%clk 0:00:06.4]} 56... Kf3 {[%clk 0:00:13.6]} 57.
f5 {[%clk 0:00:05.6]} 57... Kxg4 {[%clk 0:00:04.8]} 58. fxe6 {[%clk 0:00:05.8]}
58... fxe6 {[%clk 0:00:05.7]} 59. Kc4 {[%clk 0:00:06.2]} 59... Kf3 {[%clk
0:00:06]} 60. Kd4 {[%clk 0:00:05]} 60... e5+ {[%clk 0:00:03.5]} 61. Kd5 {[%clk
0:00:04.5]} 61... Bb8 {[%clk 0:00:04.1]} 62. Bg5 {[%clk 0:00:01.9]} 62... e4
{[%clk 0:00:04.5]} 63. Bh6 {[%clk 0:00:02.5]} 63... Bf4 {[%clk 0:00:05]} 64. Bg7
{[%clk 0:00:02.8]} 64... e3 {[%clk 0:00:05.1]} 65. Bc3 {[%clk 0:00:03.5]} 65...
e2 {[%clk 0:00:05.4]} 66. Kc4 {[%clk 0:00:04.4]} 66... Ke3 {[%clk 0:00:05.3]}
67. Bb4 {[%clk 0:00:04.1]} 67... Be5 {[%clk 0:00:02.4]} 68. Ba5 {[%clk
0:00:04.3]} 68... Bd6 {[%clk 0:00:02.5]} 69. Bc3 {[%clk 0:00:04.3]} 69... Bg3
{[%clk 0:00:03]} 70. Bb4 {[%clk 0:00:03.8]} 70... Be5 {[%clk 0:00:03.3]} 71. Ba5
{[%clk 0:00:03.7]} 71... Bf6 {[%clk 0:00:03.4]} 72. Bb4 {[%clk 0:00:03.8]} 72...
Bb2 {[%clk 0:00:03.3]} 73. Ba5 {[%clk 0:00:04.1]} 73... Bc1 {[%clk 0:00:03.9]}
74. Bb6+ {[%clk 0:00:03.6]} 74... Kf3 {[%clk 0:00:04.2]} 75. Ba5 {[%clk
0:00:04]} 75... Ke3 {[%clk 0:00:04.2]} 76. Bb6+ {[%clk 0:00:04.1]} 76... Kf3
{[%clk 0:00:04.7]} 77. Ba5 {[%clk 0:00:04.6]} 77... Be3 {[%clk 0:00:05.3]} 78.
Kd3 {[%clk 0:00:03.7]} 78... Bb6 {[%clk 0:00:05.1]} 79. Be1 {[%clk 0:00:03.9]}
79... Bc5 {[%clk 0:00:04.9]} 80. Bc3 {[%clk 0:00:03.8]} 80... Kf2 {[%clk
0:00:05.3]} 81. Bd2 {[%clk 0:00:04]} 81... Kf1 {[%clk 0:00:05.9]} 82. Bc3 {[%clk
0:00:03.5]} 82... Bd6 {[%clk 0:00:06.1]} 83. Ba5 {[%clk 0:00:03.3]} 83... Be7
{[%clk 0:00:05.8]} 84. Bc3 {[%clk 0:00:03.2]} 84... Bd8 {[%clk 0:00:06.7]} 85.
Bd2 {[%clk 0:00:02.8]} 85... Bb6 {[%clk 0:00:07]} 86. Bc3 {[%clk 0:00:03.1]}
86... Bf2 {[%clk 0:00:07.6]} 87. Bb4 {[%clk 0:00:02.7]} 87... Be1 {[%clk
0:00:08.2]} 88. Bd6 {[%clk 0:00:02.7]} 88... Kf2 {[%clk 0:00:05.1]} 89. Bc5+
{[%clk 0:00:02.5]} 89... Kf3 {[%clk 0:00:04.3]} 90. Bd6 {[%clk 0:00:03.4]} 90...
Bd2 {[%clk 0:00:03.6]} 91. Kxd2 {[%clk 0:00:02.9]} 91... Kf2 {[%clk 0:00:03.5]}
92. Bc5+ {[%clk 0:00:03.5]} 92... Kf1 {[%clk 0:00:04]} 93. Bf2 {[%clk 0:00:03]}
93... Kxf2 {[%clk 0:00:04]} 0-1